fUSD/lending_fUSD_20250505
["ID","MTS","AMOUNT","RATE_DAILY","PERIOD"]
[359957182,1746447053549,-450.0,0.0001987,2]
[359957184,1746447053558,-450.0,0.0001987,2]
[359957186,1746447053568,-465.68,0.0001987,2]
[359957189,1746447053578,-450.0,0.0001987,2]
[359957191,1746447053588,-450.0,0.0001987,2]
[359957192,1746447053598,-831.25,0.0001987,2]
[359957195,1746447053607,-215.73,0.00019871,2]
[359957197,1746447053617,-450.0,0.00019871,2]
[359957199,1746447053626,-450.0,0.00019871,2]
[359957201,1746447053635,-450.0,0.00019871,2]
[359957202,1746447053644,-450.0,0.00019871,2]
[359957204,1746447053654,-450.0,0.00019871,2]
[359957206,1746447053663,-450.0,0.00019871,2]
[359957208,1746447053672,-450.0,0.00019871,2]
[359957210,1746447053681,-516.13,0.00019871,2]
[359957212,1746447053691,-450.0,0.00019871,2]
[359957214,1746447053700,-450.0,0.00019871,2]
[359957216,1746447053709,-450.0,0.00019871,2]
[359957217,1746447053719,-450.0,0.00019871,2]
[359957218,1746447053728,-450.0,0.00019871,2]
[359957219,1746447053739,-450.0,0.00019871,2]
[359957220,1746447053752,-450.0,0.00019871,2]
[359957221,1746447053761,-450.0,0.00019871,2]
[359957222,1746447053770,-317.8813548,0.00019871,2]
[359957223,1746447053779,-253.22,0.00019871,2]
[359957224,1746447053790,-479.8,0.00019871,2]
[359957225,1746447053799,-450.0,0.00019871,2]
[359957227,1746447053809,-450.0,0.00019871,2]
[359957229,1746447053819,-450.0,0.00019871,2]
[359957231,1746447053828,-450.0,0.00019871,2]
[359957233,1746447053838,-450.0,0.00019871,2]
[359957234,1746447053848,-450.0,0.00019871,2]
[359957235,1746447053857,-212.14474307,0.00019871,2]
[359957236,1746447053866,-450.0,0.00019871,2]
[359957237,1746447053875,-450.0,0.00019871,2]
[359957238,1746447053884,-450.0,0.00019871,2]
[359957239,1746447053894,-450.0,0.00019871,2]
[359957240,1746447053903,-450.0,0.00019871,2]
[359957241,1746447053913,-450.0,0.00019871,2]
[359957242,1746447053922,-831.25,0.00019871,2]
[359957243,1746447053932,-303.70750864,0.00019873,2]
[359957244,1746447053942,-500.0,0.00019873,2]
[359957245,1746447053951,-500.0,0.00019873,2]
[359957246,1746447053961,-606.55783917,0.00019873,2]
[359957247,1746447053970,-430.52902541,0.00019873,2]
[359957248,1746447053979,-500.0,0.00019873,2]
[359957249,1746447053989,-500.0,0.00019873,2]
[359957250,1746447053998,-223.54304339,0.00019873,2]
[359957251,1746447054007,-500.86321128,0.00019873,2]
[359957252,1746447054016,-392.33839899,0.00019873,2]
[359957253,1746447054025,-320.46954599,0.00019873,2]
[359957254,1746447054034,-500.0,0.00019873,2]
[359957255,1746447054044,-500.0,0.00019873,2]
[359957256,1746447054054,-500.0,0.00019873,2]
[359957257,1746447054063,-500.80786321,0.00019873,2]
[359957258,1746447054072,-1677.0517901,0.00019875,2]
[359957259,1746447054081,-450.0,0.00019879,2]
[359957260,1746447054090,-450.0,0.00019879,2]
[359957261,1746447054100,-450.0,0.00019879,2]
[359957262,1746447054108,-450.0,0.0001988,2]
[359957263,1746447054117,-450.0,0.0001988,2]
[359957264,1746447054127,-493.63482507,0.0001988,2]
[359957265,1746447054136,-450.0,0.0001988,2]
[359957266,1746447054145,-450.0,0.0001988,2]
[359957267,1746447054154,-450.0,0.0001988,2]
[359957268,1746447054164,-450.0,0.0001988,2]
[359957269,1746447054173,-516.13,0.0001988,2]
[359957270,1746447054182,-450.0,0.0001988,2]
[359957271,1746447054191,-450.0,0.0001988,2]
[359957272,1746447054200,-450.0,0.0001988,2]
[359957273,1746447054210,-450.0,0.0001988,2]
[359957274,1746447054219,-450.0,0.0001988,2]
[359957275,1746447054228,-429.00958771,0.0001988,2]
[359957276,1746447054237,-450.0,0.0001988,2]
[359957277,1746447054246,-450.0,0.0001988,2]
[359957278,1746447054256,-479.8,0.0001988,2]
[359957279,1746447054265,-450.0,0.0001988,2]
[359957280,1746447054274,-450.0,0.0001988,2]
[359957281,1746447054284,-450.0,0.0001988,2]
[359957282,1746447054293,-450.0,0.0001988,2]
[359957283,1746447054303,-450.0,0.0001988,2]
[359957284,1746447054312,-450.0,0.0001988,2]
[359957285,1746447054322,-247.21,0.0001988,2]
[359957286,1746447054331,-450.0,0.0001988,2]
[359957287,1746447054340,-450.0,0.0001988,2]
[359957288,1746447054350,-405.27,0.0001988,2]
[359957289,1746447054359,-450.0,0.0001988,2]
[359957290,1746447054368,-450.0,0.0001988,2]
[359957291,1746447054378,-831.25,0.0001988,2]
[359957292,1746447054387,-1713.1269138,0.00019882,2]
[359957293,1746447054397,-450.0,0.00019896,2]
[359957294,1746447054406,-450.0,0.00019896,2]
[359957295,1746447054416,-450.0,0.00019896,2]
[359957296,1746447054425,-450.0,0.00019896,2]
[359957297,1746447054436,-450.0,0.00019896,2]
[359957298,1746447054445,-450.0,0.00019896,2]
[359957299,1746447054455,-479.8,0.00019896,2]
[359957300,1746447054464,-450.0,0.00019896,2]
[359957301,1746447054474,-450.0,0.00019896,2]
[359957302,1746447054483,-450.0,0.00019896,2]
[359957303,1746447054492,-450.0,0.00019896,2]
[359957304,1746447054502,-450.0,0.00019896,2]
[359957305,1746447054511,-450.0,0.00019896,2]
[359957306,1746447054523,-450.0,0.00019896,2]
[359957307,1746447054533,-450.0,0.00019896,2]
[359957308,1746447054543,-450.0,0.00019896,2]
[359957309,1746447054553,-450.0,0.00019896,2]
[359957310,1746447054562,-831.25,0.00019896,2]
[359957311,1746447054572,-500.0,0.00019896,2]
[359957312,1746447054581,-450.0,0.00019896,2]
[359957313,1746447054590,-450.0,0.00019896,2]
[359957314,1746447054599,-450.0,0.00019896,2]
[359957315,1746447054609,-450.0,0.00019896,2]
[359957316,1746447054618,-450.0,0.00019896,2]
[359957317,1746447054627,-450.0,0.00019896,2]
[359957318,1746447054637,-450.0,0.00019896,2]
[359957319,1746447054646,-450.0,0.00019896,2]
[359957320,1746447054656,-1161.4,0.00019896,2]
[359957321,1746447054665,-450.0,0.00019898,2]
[359957322,1746447054675,-450.0,0.00019898,2]
[359957323,1746447054683,-450.0,0.00019898,2]
[359957324,1746447054692,-450.0,0.00019898,2]
[359957325,1746447054702,-450.0,0.00019898,2]
[359957326,1746447054712,-450.0,0.00019898,2]
[359957327,1746447054722,-516.13,0.00019898,2]
[359957328,1746447054732,-450.0,0.00019898,2]
[359957329,1746447054743,-450.0,0.00019898,2]
[359957330,1746447054754,-450.0,0.00019898,2]
[359957331,1746447054764,-450.0,0.00019898,2]
[359957332,1746447054774,-450.0,0.00019898,2]
[359957333,1746447054783,-450.0,0.00019898,2]
[359957334,1746447054794,-314.25545419,0.00019898,2]
[359957335,1746447054803,-479.8,0.00019898,2]
[359957336,1746447054813,-450.0,0.00019898,2]
[359957337,1746447054824,-450.0,0.00019898,2]
[359957338,1746447054833,-450.0,0.00019898,2]
[359957339,1746447054843,-450.0,0.00019898,2]
[359957340,1746447054852,-450.0,0.00019898,2]
[359957341,1746447054862,-450.0,0.00019898,2]
[359957342,1746447054872,-450.0,0.00019898,2]
[359957343,1746447054881,-450.0,0.00019898,2]
[359957344,1746447054890,-450.0,0.00019898,2]
[359957345,1746447054900,-831.25,0.00019898,2]
[359957346,1746447054909,-450.0,0.00019899,2]
[359957347,1746447054919,-450.0,0.00019899,2]
[359957348,1746447054928,-450.0,0.00019899,2]
[359957349,1746447054937,-450.0,0.00019899,2]
[359957350,1746447054947,-450.0,0.00019899,2]
[359957351,1746447054957,-450.0,0.00019899,2]
[359957352,1746447054966,-516.13,0.00019899,2]
[359957353,1746447054975,-450.0,0.00019899,2]
[359957354,1746447054984,-450.0,0.00019899,2]
[359957355,1746447054994,-450.0,0.00019899,2]
[359957356,1746447055003,-450.0,0.00019899,2]
[359957357,1746447055013,-201.46305068,0.00019899,2]
[359957358,1746447055023,-450.0,0.00019899,2]
[359957359,1746447055034,-479.8,0.00019899,2]
[359957360,1746447055044,-179.54592352,0.00019899,2]
[359957361,1746447055053,-450.0,0.00019899,2]
[359957362,1746447055062,-450.0,0.00019899,2]
[359957363,1746447055071,-450.0,0.00019899,2]
[359957364,1746447055083,-378.03850139,0.00019899,2]
[359957365,1746447055093,-450.0,0.00019899,2]
[359957366,1746447055103,-450.0,0.00019899,2]
[359957367,1746447055112,-232.9,0.00019899,2]
[359957368,1746447055121,-450.0,0.00019899,2]
[359957369,1746447055130,-831.25,0.00019899,2]
[359957370,1746447055139,-751.0,0.000199,2]
[359957371,1746447055149,-500.0,0.000199,4]
[359957372,1746447055158,-243.18,0.000199,2]
[359957373,1746447055168,-472.885,0.000199,2]
[359957374,1746447055178,-554.1,0.000199,2]
[359957375,1746447055187,-301.07,0.000199,2]
[359957376,1746447055196,-150.47,0.000199,2]
[359957377,1746447055205,-151.09,0.000199,2]
[359957378,1746447055215,-150.65,0.000199,2]
[359957379,1746447055224,-6459.44234488,0.000199,2]
[359957380,1746447055234,-1154.02,0.000199,2]
[359957381,1746447055243,-451.75,0.000199,2]
[359957382,1746447055253,-150.0,0.000199,2]
[359957383,1746447055263,-300.0,0.000199,2]
[359957384,1746447055272,-520.83,0.000199,2]
[359957385,1746447055282,-661.42,0.000199,2]
[359957386,1746447055291,-912.3,0.000199,2]
[359957387,1746447055300,-165.32,0.000199,2]
[359957388,1746447055310,-1713.1269138,0.000199,2]
[359957389,1746447055319,-1677.0517901,0.000199,2]
[359957390,1746447055329,-451.75,0.000199,2]
[359957391,1746447055444,-1154.02,0.000199,2]
[359957392,1746447055454,-468.63,0.000199,2]
[359957393,1746447055464,-352.11,0.000199,2]
[359957394,1746447055473,-150.0,0.000199,2]
[359957395,1746447055483,-802.02,0.000199,2]
[359957396,1746447055492,-173.75396447,0.000199,2]
[359957397,1746447055502,-451.75,0.000199,2]
[359957398,1746447055511,-162.26,0.000199,2]
[359957399,1746447055521,-300.0,0.000199,2]
[359957400,1746447055530,-801.78,0.000199,2]
[359957401,1746447055539,-352.11,0.000199,2]
[359957402,1746447055549,-451.75,0.000199,2]
[359957403,1746447055559,-162.3,0.000199,2]
[359957404,1746447055568,-1626.47,0.000199,2]
[359957405,1746447055577,-300.0,0.000199,2]
[359957406,1746447055588,-767.79,0.000199,2]
[359957407,1746447055597,-150.0,0.000199,2]
[359957408,1746447055606,-448.66,0.000199,2]
[359957409,1746447055616,-162.3,0.000199,2]
[359957410,1746447055625,-801.53,0.000199,2]
[359957411,1746447055635,-797.0,0.00019968,2]
[359957412,1746447055644,-625.0,0.00019968,2]
[359957413,1746447055653,-582.0,0.00019968,2]
[359957414,1746447055663,-1452.0,0.00019968,2]
[359957415,1746447055672,-915.0,0.00019968,2]
[359957416,1746447055682,-1242.0,0.00019968,2]
[359957417,1746447055691,-551.0,0.00019968,2]
[359957418,1746447055700,-878.0,0.00019968,2]
[359957419,1746447055710,-4086.635,0.00019968,2]
[359957420,1746447055719,-6816.502,0.00019968,2]
[359957421,1746447055729,-500.0,0.00019973,2]
[359957422,1746447055738,-500.0,0.00019973,2]
[359957423,1746447055751,-500.0,0.00019973,2]
[359957424,1746447055761,-347.40802103,0.00019973,2]
[359957425,1746447055770,-500.0,0.00019973,2]
[359957426,1746447055780,-500.0,0.00019973,2]
[359957427,1746447055790,-500.0,0.00019973,2]
[359957428,1746447055799,-150.24055713,0.00019973,2]
[359957429,1746447055809,-500.0,0.00019973,2]
[359957430,1746447055819,-500.0,0.00019973,2]
[359957431,1746447055829,-500.0,0.00019973,2]
[359957432,1746447055839,-222.34650816,0.00019973,2]
[359957433,1746447055848,-150.022,0.00019976,2]
[359957434,1746447055860,-164.086,0.00019976,2]
[359957435,1746447055869,-218.315,0.00019976,2]
[359957436,1746447055878,-152.128,0.00019976,2]
[359957437,1746447055887,-150.0,0.00019976,2]
[359957438,1746447055896,-450.0,0.00019984,2]
[359957439,1746447055905,-450.0,0.00019984,2]
[359957440,1746447055915,-1380.4,0.00019984,2]
[359957441,1746447055924,-450.0,0.00019984,2]
[359957442,1746447055933,-450.0,0.00019985,2]
[359957443,1746447055942,-450.0,0.00019985,2]
[359957444,1746447055951,-450.0,0.00019985,2]
[359957445,1746447055960,-450.0,0.00019985,2]
[359957446,1746447055969,-450.0,0.00019985,2]
[359957447,1746447055979,-480.50365031,0.00019985,2]
[359957448,1746447055988,-450.0,0.00019985,2]
[359957449,1746447055998,-516.13,0.00019985,2]
[359957450,1746447056008,-450.0,0.00019985,2]
[359957451,1746447056020,-450.0,0.00019985,2]
[359957452,1746447056031,-450.0,0.00019985,2]
[359957453,1746447056041,-450.0,0.00019985,2]
[359957454,1746447056052,-450.0,0.00019985,2]
[359957455,1746447056062,-450.0,0.00019985,2]
[359957456,1746447056072,-450.0,0.00019985,2]
[359957457,1746447056083,-282.56,0.00019985,2]
[359957458,1746447056092,-450.0,0.00019985,2]
[359957459,1746447056102,-450.0,0.00019985,2]
[359957460,1746447056111,-450.0,0.00019985,2]
[359957461,1746447056120,-503.98779934,0.00019985,2]
[359957462,1746447056131,-450.0,0.00019985,2]
[359957463,1746447056142,-450.0,0.00019985,2]
[359957464,1746447056152,-450.0,0.00019985,2]
[359957465,1746447056161,-450.0,0.00019985,2]
[359957466,1746447056171,-160.74144872,0.00019985,2]
[359957467,1746447056181,-450.0,0.00019985,2]
[359957468,1746447056190,-450.0,0.00019985,2]
[359957469,1746447056200,-483.43804369,0.00019985,2]
[359957470,1746447056209,-450.0,0.00019985,2]
[359957471,1746447056219,-450.0,0.00019985,2]
[359957472,1746447056229,-450.0,0.00019985,2]
[359957473,1746447056238,-450.0,0.00019985,2]
[359957474,1746447056248,-450.0,0.00019985,2]
[359957475,1746447056257,-568.69340176,0.00019985,2]
[359957476,1746447056266,-450.0,0.00019985,2]
[359957477,1746447056275,-450.0,0.00019985,2]
[359957478,1746447056284,-450.0,0.00019985,2]
[359957479,1746447056293,-508.71688231,0.00019985,2]
[359957480,1746447056303,-275.47723954,0.00019985,2]
[359957481,1746447056312,-497.31125296,0.00019985,2]
[359957482,1746447056322,-510.39251004,0.00019985,2]
[359957483,1746447056332,-491.98027551,0.00019985,2]
[359957484,1746447056341,-450.0,0.00019985,2]
[359957485,1746447056350,-500.99803008,0.00019985,2]
[359957486,1746447056360,-450.0,0.00019985,2]
[359957487,1746447056370,-450.0,0.00019985,2]
[359957488,1746447056379,-504.17099509,0.00019985,2]
[359957489,1746447056388,-450.0,0.00019985,2]
[359957490,1746447056397,-450.0,0.00019985,2]
[359957491,1746447056407,-571.8527472,0.00019985,2]
[359957492,1746447056417,-510.18411999,0.00019985,2]
[359957493,1746447056427,-450.0,0.00019985,2]
[359957494,1746447056437,-493.64893551,0.00019985,2]
[359957495,1746447056446,-450.0,0.00019985,2]
[359957496,1746447056456,-536.33296354,0.00019985,2]
[359957497,1746447056465,-503.64070184,0.00019985,2]
[359957498,1746447056475,-450.0,0.00019985,2]
[359957499,1746447056485,-467.56259824,0.00019985,2]
[359957500,1746447056495,-554.29742246,0.00019985,2]
[359957501,1746447056504,-499.64154385,0.00019985,2]
[359957502,1746447056514,-499.95781804,0.00019985,2]
[359957503,1746447056523,-503.68932008,0.00019985,2]
[359957504,1746447056533,-450.0,0.00019985,2]
[359957505,1746447056542,-450.0,0.00019985,2]
[359957506,1746447056552,-480.17718152,0.00019985,2]
[359957507,1746447056561,-587.66660892,0.00019985,2]
[359957508,1746447056571,-450.0,0.00019985,2]
[359957509,1746447056581,-516.82376711,0.00019985,2]
[359957510,1746447056590,-495.55925297,0.00019985,2]
[359957511,1746447056599,-505.91607021,0.00019985,2]
[359957512,1746447056608,-450.0,0.00019985,2]
[359957513,1746447056617,-430.18951448,0.00019985,2]
[359957514,1746447056627,-480.64205664,0.00019985,2]
[359957515,1746447056636,-470.73379603,0.00019985,2]
[359957516,1746447056646,-450.0,0.00019985,2]
[359957517,1746447056655,-465.58248752,0.00019985,2]
[359957518,1746447056665,-450.0,0.00019985,2]
[359957519,1746447056675,-476.10273461,0.00019985,2]
[359957520,1746447056685,-450.0,0.00019985,2]
[359957521,1746447056694,-529.35152763,0.00019985,2]
[359957522,1746447056704,-492.50818415,0.00019985,2]
[359957523,1746447056713,-538.27318182,0.00019985,2]
[359957524,1746447056723,-450.0,0.00019985,2]
[359957525,1746447056733,-567.84884716,0.00019985,2]
[359957526,1746447056745,-450.0,0.00019985,2]
[359957527,1746447056755,-450.0,0.00019985,2]
[359957528,1746447056764,-511.95468885,0.00019985,2]
[359957529,1746447056774,-450.0,0.00019985,2]
[359957530,1746447056783,-450.0,0.00019985,2]
[359957531,1746447056793,-450.0,0.00019985,2]
[359957532,1746447056803,-450.0,0.00019985,2]
[359957533,1746447056812,-450.0,0.00019985,2]
[359957534,1746447056822,-450.0,0.00019985,2]
[359957535,1746447056833,-498.90188106,0.00019985,2]
[359957536,1746447056842,-450.0,0.00019985,2]
[359957537,1746447056851,-530.0,0.00019985,2]
[359957538,1746447056861,-450.0,0.00019985,2]
[359957539,1746447056870,-469.83046995,0.00019985,2]
[359957540,1746447056880,-450.0,0.00019985,2]
[359957541,1746447056890,-450.0,0.00019985,2]
[359957542,1746447056899,-335.81864551,0.00019985,2]
[359957543,1746447056909,-569.10244832,0.00019985,2]
[359957544,1746447056919,-450.0,0.00019985,2]
[359957545,1746447056929,-450.0,0.00019985,2]
[359957546,1746447056938,-499.49418601,0.00019985,2]
[359957547,1746447056948,-450.0,0.00019985,2]
[359957548,1746447056957,-366.03681086,0.00019985,2]
[359957549,1746447056967,-510.15604118,0.00019985,2]
[359957550,1746447056976,-450.0,0.00019985,2]
[359957551,1746447056985,-450.0,0.00019985,2]
[359957552,1746447056995,-450.0,0.00019985,2]
[359957553,1746447057004,-490.87875543,0.00019985,2]
[359957554,1746447057013,-450.0,0.00019985,2]
[359957555,1746447057022,-450.0,0.00019985,2]
[359957556,1746447057032,-450.0,0.00019985,2]
[359957557,1746447057041,-510.53741987,0.00019985,2]
[359957558,1746447057050,-479.8,0.00019985,2]
[359957559,1746447057060,-574.79033169,0.00019985,2]
[359957560,1746447057069,-450.0,0.00019985,2]
[359957561,1746447057079,-450.0,0.00019985,2]
[359957562,1746447057088,-500.99771152,0.00019985,2]
[359957563,1746447057097,-569.09377469,0.00019985,2]
[359957564,1746447057106,-450.0,0.00019985,2]
[359957565,1746447057116,-298.20338739,0.00019985,2]
[359957566,1746447057126,-507.29516693,0.00019985,2]
[359957567,1746447057136,-450.0,0.00019985,2]
[359957568,1746447057145,-458.27232362,0.00019985,2]
[359957569,1746447057154,-583.1868487,0.00019985,2]
[359957570,1746447057164,-450.0,0.00019985,2]
[359957571,1746447057174,-522.10512428,0.00019985,2]
[359957572,1746447057183,-505.03392445,0.00019985,2]
[359957573,1746447057193,-450.0,0.00019985,2]
[359957574,1746447057202,-450.0,0.00019985,2]
[359957575,1746447057211,-492.18022562,0.00019985,2]
[359957576,1746447057220,-504.32537222,0.00019985,2]
[359957577,1746447057230,-494.94874286,0.00019985,2]
[359957578,1746447057241,-450.0,0.00019985,2]
[359957579,1746447057250,-450.0,0.00019985,2]
[359957580,1746447057260,-450.0,0.00019985,2]
[359957581,1746447057270,-491.0667093,0.00019985,2]
[359957582,1746447057279,-500.85043844,0.00019985,2]
[359957583,1746447057289,-450.0,0.00019985,2]
[359957584,1746447057298,-240.39197207,0.00019985,2]
[359957585,1746447057307,-500.0,0.00019985,2]
[359957586,1746447057316,-450.0,0.00019985,2]
[359957587,1746447057325,-450.0,0.00019985,2]
[359957588,1746447057335,-450.0,0.00019985,2]
[359957589,1746447057345,-502.53110081,0.00019985,2]
[359957590,1746447057354,-496.47963949,0.00019985,2]
[359957591,1746447057362,-450.0,0.00019985,2]
[359957592,1746447057372,-507.21710966,0.00019985,2]
[359957593,1746447057381,-502.91885201,0.00019985,2]
[359957594,1746447057390,-450.0,0.00019985,2]
[359957595,1746447057399,-450.0,0.00019985,2]
[359957596,1746447057408,-450.0,0.00019985,2]
[359957597,1746447057417,-450.0,0.00019985,2]
[359957598,1746447057426,-203.9857217,0.00019985,2]
[359957599,1746447057435,-450.0,0.00019985,2]
[359957600,1746447057445,-450.0,0.00019985,2]
[359957601,1746447057454,-450.0,0.00019985,2]
[359957602,1746447057463,-564.15930112,0.00019985,2]
[359957603,1746447057472,-425.10136853,0.00019985,2]
[359957604,1746447057482,-450.0,0.00019985,2]
[359957605,1746447057491,-468.47803953,0.00019985,2]
[359957606,1746447057500,-483.32849056,0.00019985,2]
[359957607,1746447057509,-506.1079232,0.00019985,2]
[359957608,1746447057518,-485.71837721,0.00019985,2]
[359957609,1746447057528,-450.0,0.00019985,2]
[359957610,1746447057537,-450.0,0.00019985,2]
[359957611,1746447057546,-450.0,0.00019985,2]
[359957612,1746447057555,-450.0,0.00019985,2]
[359957613,1746447057565,-450.0,0.00019985,2]
[359957614,1746447057574,-503.14406159,0.00019985,2]
[359957615,1746447057586,-450.0,0.00019985,2]
[359957616,1746447057595,-540.31288276,0.00019985,2]
[359957617,1746447057604,-560.43503776,0.00019985,2]
[359957618,1746447057614,-450.0,0.00019985,2]
[359957619,1746447057623,-450.0,0.00019985,2]
[359957620,1746447057743,-450.0,0.00019985,2]
[359957621,1746447057754,-213.32317056,0.00019985,2]
[359957622,1746447057764,-500.0,0.00019985,2]
[359957623,1746447057774,-450.0,0.00019985,2]
[359957624,1746447057785,-475.9336918,0.00019985,2]
[359957625,1746447057796,-450.0,0.00019985,2]
[359957626,1746447057806,-479.72679693,0.00019985,2]
[359957627,1746447057815,-1000.0,0.00019985,2]
[359957628,1746447057828,-450.0,0.00019985,2]
[359957629,1746447057837,-450.0,0.00019985,2]
[359957630,1746447057847,-450.0,0.00019985,2]
[359957631,1746447057857,-462.12054907,0.00019985,2]
[359957632,1746447057867,-450.0,0.00019985,2]
[359957633,1746447057876,-450.0,0.00019985,2]
[359957634,1746447057886,-450.0,0.00019985,2]
[359957635,1746447057897,-450.0,0.00019985,2]
[359957636,1746447057908,-450.0,0.00019985,2]
[359957637,1746447057919,-513.30149544,0.00019985,2]
[359957638,1746447057929,-494.0564744,0.00019985,2]
[359957639,1746447057939,-450.0,0.00019985,2]
[359957640,1746447057949,-450.0,0.00019985,2]
[359957641,1746447057959,-517.54027635,0.00019985,2]
[359957642,1746447057969,-450.0,0.00019985,2]
[359957643,1746447057978,-490.0,0.00019985,2]
[359957644,1746447057987,-450.0,0.00019985,2]
[359957645,1746447057997,-450.0,0.00019985,2]
[359957646,1746447058007,-450.0,0.00019985,2]
[359957647,1746447058016,-450.0,0.00019985,2]
[359957648,1746447058026,-490.0,0.00019985,2]
[359957649,1746447058035,-490.0,0.00019985,2]
[359957650,1746447058046,-450.0,0.00019985,2]
[359957651,1746447058055,-450.0,0.00019985,2]
[359957652,1746447058065,-490.0,0.00019985,2]
[359957653,1746447058074,-450.0,0.00019985,2]
[359957654,1746447058085,-450.0,0.00019985,2]
[359957655,1746447058095,-450.0,0.00019985,2]
[359957656,1746447058106,-503.93,0.00019985,2]
[359957657,1746447058115,-368.9861777,0.00019985,2]
[359957658,1746447058125,-450.0,0.00019985,2]
[359957659,1746447058135,-539.11,0.00019985,2]
[359957660,1746447058145,-519.03477132,0.00019985,2]
[359957661,1746447058155,-455.73773832,0.00019985,2]
[359957662,1746447058164,-450.0,0.00019985,2]
[359957663,1746447058173,-831.25,0.00019985,2]
[359957664,1746447058182,-450.0,0.00019985,2]
[359957665,1746447058192,-10083.06,0.00019985,2]
[359957666,1746447058203,-596.08,0.00019985,2]
[359957667,1746447058212,-455.68575044,0.00019985,2]
[359957668,1746447058223,-450.0,0.00019985,2]
[359957669,1746447058232,-450.0,0.00019985,2]
[359957670,1746447058241,-450.0,0.00019985,2]
[359957671,1746447058250,-450.0,0.00019985,2]
[359957672,1746447058260,-450.0,0.00019985,2]
[359957673,1746447058271,-506.56,0.00019985,2]
[359957674,1746447058280,-450.0,0.00019985,2]
[359957675,1746447058290,-434.68452417,0.00019985,2]
[359957676,1746447058299,-450.0,0.00019985,2]
[359957677,1746447058308,-450.0,0.00019985,2]
[359957678,1746447058318,-2010.48,0.00019985,2]
[359957679,1746447058329,-2962.13,0.00019985,2]
[359957680,1746447058339,-527.63637026,0.00019985,2]
[359957681,1746447058348,-450.0,0.00019985,2]
[359957682,1746447058358,-361.55879876,0.00019985,2]
[359957683,1746447058367,-450.0,0.00019985,2]
[359957684,1746447058376,-450.0,0.00019985,2]
[359957685,1746447058386,-543.82,0.00019985,2]
[359957686,1746447058395,-513.01704804,0.00019985,2]
[359957687,1746447058405,-450.0,0.00019985,2]
[359957688,1746447058415,-450.0,0.00019985,2]
[359957689,1746447058425,-1106.82,0.00019985,2]
[359957690,1746447058435,-450.0,0.00019985,2]
[359957691,1746447058445,-450.0,0.00019985,2]
[359957692,1746447058454,-500.0,0.00019985,2]
[359957693,1746447058465,-519.74279589,0.00019985,2]
[359957694,1746447058474,-510.0,0.00019985,2]
[359957695,1746447058484,-500.0,0.00019985,2]
[359957696,1746447058494,-407.25791908,0.00019985,2]
[359957697,1746447058504,-569.24456126,0.00019985,2]
[359957698,1746447058514,-457.95442225,0.00019985,2]
[359957699,1746447058523,-450.0,0.00019985,2]
[359957700,1746447058532,-450.0,0.00019985,2]
[359957701,1746447058543,-450.0,0.00019985,2]
[359957702,1746447058552,-467.16628513,0.00019985,2]